{"text_format":"2","workbook":"xlsx","n_sheets":2,"sheets":["Foglio1","Foglio2"],"not_rendered":{"charts":0,"images":0,"macros":0,"external_links":0,"defined_names":0,"comments":0,"pivot_tables":0},"unopened":[],"bounds":{"document_bytes":16777216,"sheet_cells":100000,"run_cost":"one","rows_first":2000,"rows_last":500,"rows_between":2000,"halvings":0,"cell_chars":16384,"cell_head_chars":4096},"cells_cut":0,"cells_raw":0,"read":"whole","date_system":"1900"}

{"sheet":"Foglio1","index":0,"n_rows":40,"n_cols":6,"rows_kept":40,"cut":false,"hidden":false,"merged":[]}
["Tipologia di attrezzatura/bene come da capitolo 3.2 Operazioni ammissibili - D.D.G. n. 1077 del 26/11/2020 - PO FESR -Azione 10.8.1","Descrizione prodotto","Q","Costo Unitario Stimato Iva comp.al 22%","Costo TOT Iva comp."]
["A.1 - notebook e tablet dotati di microfono, speaker e web-cam, integrati o off-board (cioè acquistati separatamente e compatibili con il notebook/tablet);",null,1,2000,{"$f":"D2*C2","v":2000}]
["A.1 - notebook e tablet dotati di microfono, speaker e web-cam, integrati o off-board (cioè acquistati separatamente e compatibili con il notebook/tablet);",null,1,2000,{"$f":"D3*C3","v":2000}]
["A.1 - notebook e tablet dotati di microfono, speaker e web-cam, integrati o off-board (cioè acquistati separatamente e compatibili con il notebook/tablet);",null,1,2000,{"$f":"D4*C4","v":2000}]
["A.1 - notebook e tablet dotati di microfono, speaker e web-cam, integrati o off-board (cioè acquistati separatamente e compatibili con il notebook/tablet);",null,1,2000,{"$f":"D5*C5","v":2000}]
["A.1 - notebook e tablet dotati di microfono, speaker e web-cam, integrati o off-board (cioè acquistati separatamente e compatibili con il notebook/tablet);",null,1,2000,{"$f":"D6*C6","v":2000}]
["A.1 - notebook e tablet dotati di microfono, speaker e web-cam, integrati o off-board (cioè acquistati separatamente e compatibili con il notebook/tablet);",null,1,2000,{"$f":"D7*C7","v":2000}]
["A.1 - notebook e tablet dotati di microfono, speaker e web-cam, integrati o off-board (cioè acquistati separatamente e compatibili con il notebook/tablet);",null,1,2000,{"$f":"D8*C8","v":2000}]
["A.1 - notebook e tablet dotati di microfono, speaker e web-cam, integrati o off-board (cioè acquistati separatamente e compatibili con il notebook/tablet);",null,1,2000,{"$f":"D9*C9","v":2000}]
["A.3 - internet key e modem-router 4G/LTE e altri accessori utili all’erogazione/fruizione delle attività formative a distanza;",null,1,2000,{"$f":"D10*C10","v":2000}]
["A.1 - notebook e tablet dotati di microfono, speaker e web-cam, integrati o off-board (cioè acquistati separatamente e compatibili con il notebook/tablet);",null,1,2000,{"$f":"D11*C11","v":2000}]
["A.1 - notebook e tablet dotati di microfono, speaker e web-cam, integrati o off-board (cioè acquistati separatamente e compatibili con il notebook/tablet);",null,1,2000,{"$f":"D12*C12","v":2000}]
["A.1 - notebook e tablet dotati di microfono, speaker e web-cam, integrati o off-board (cioè acquistati separatamente e compatibili con il notebook/tablet);",null,1,2000,{"$f":"D13*C13","v":2000}]
["A.1 - notebook e tablet dotati di microfono, speaker e web-cam, integrati o off-board (cioè acquistati separatamente e compatibili con il notebook/tablet);",null,1,2000,{"$f":"D14*C14","v":2000}]
["A.1 - notebook e tablet dotati di microfono, speaker e web-cam, integrati o off-board (cioè acquistati separatamente e compatibili con il notebook/tablet);",null,1,2000,{"$f":"D15*C15","v":2000}]
[null,"Incidenza di Costo per a) almeno il 92%",null,"Tot. Lordo (IVA comp)",{"$f":"SUM(E2:E15)","v":28000},{"$f":"E16/E40","v":0.952057123427406}]
[null,null,null,"..di cui IVA al 22%",{"$f":"(E14)-E14/1.22","v":360.655737704918}]
["B. COLLAUDO E PUBBLICITA’","Indicare se possibile risorsa professionale Interna/esterna alla P.A.attuatrice (oppure in caso di materiale pubblicitario indicare prodotto e costo approssimativo)","H.","Costo Orario Lordo Omnicomprensivo di Oneri fiscali, sociali sia a carico Stato che dipendente.","Costo TOT Iva comp."]
["B.1- Collaudo: max.2%",null,20,50,{"$f":"D19*C19","v":1000}]
["B.1- Collaudo: max.2%",null,0,0,{"$f":"D20*C20","v":0}]
["B.1- Collaudo: max.2%",null,null,null,{"$f":"D21*C21","v":0}]
["B.2 – Pubblicità. Max.1%","Adesivi pubblicitari/inventario",100,1.5,{"$f":"D22*C22","v":150}]
["B.2 – Pubblicità. Max.1%","Targa  A3 in forex da esterno con loghi",2,30,{"$f":"D23*C23","v":60}]
["B.2 – Pubblicità. Max.1%",null,1,0,{"$f":"D24*C24","v":0}]
[null,"Incidenza di Costo per b) non oltre il 3% ",null,"Tot. Lordo (IVA comp)",{"$f":"SUM(E19:E24)","v":1210},{"$f":"E25/E40","v":0.0411424685481129}]
[null,null,null,"..di cui IVA al 22%",{"$f":"(E16)-E16/1.22","v":5049.18032786885}]
[]
["C –Spese Generali Max 5%","Descrivere dettagliatamente","Q","Costo Presunto","Costo TOT Iva comp."]
["C1. - ritiro e dismissione di RAE",null,1,200,{"$f":"D29*C29","v":200}]
["C1. - ritiro e dismissione di RAE",null,null,null,{"$f":"D30*C30","v":0}]
["C1. - ritiro e dismissione di RAE",null,null,null,{"$f":"D31*C31","v":0}]
["C3. altro (descrivere dettagliatamente)",null,null,null,{"$f":"D32*C32","v":0}]
["C2. - oneri di conferimento a discarica",null,null,null,{"$f":"D33*C33","v":0}]
["C2. - oneri di conferimento a discarica",null,null,null,{"$f":"D34*C34","v":0}]
["C3. altro (descrivere dettagliatamente)",null,null,null,{"$f":"D35*C35","v":0}]
[null,null,null,"Tot. Lordo (IVA comp)",{"$f":"SUM(E29:E35)","v":200},{"$f":"E36/E40","v":0.00680040802448147}]
[null,null,null,"..di cui IVA al 22%",{"$f":"E36-(E36-C291)/1.22","v":36.0655737704918}]
[]
[]
[null,null,null,"A+B+C",{"$f":"E36+E25+E16","v":29410}]

{"sheet":"Foglio2","index":1,"n_rows":14,"n_cols":1,"rows_kept":14,"cut":false,"hidden":true,"merged":[]}
["A.1 - notebook e tablet dotati di microfono, speaker e web-cam, integrati o off-board (cioè acquistati separatamente e compatibili con il notebook/tablet);"]
["A.2 -software e licenze per la realizzazione e/o l’uso di piattaforme di e-learning, mobilelearning, content- sharing, streaming, video-call di gruppo e web-conference;"]
["A.3 - internet key e modem-router 4G/LTE e altri accessori utili all’erogazione/fruizione delle attività formative a distanza;"]
["A.4 - armadi e carrelli per la custodia dei succitati dispositivi all’interno dell’Istituzione scolastica;"]
["A.5 - realizzazione di cablaggio di rete strutturato e non, all’interno degli edifici scolastici ovvero tra più edifici facenti parte dello stesso istituto scolastico."]
[]
[]
[]
["B.1- Collaudo: max.2%"]
["B.2 – Pubblicità. Max.1%"]
[]
["C1. - ritiro e dismissione di RAE"]
["C2. - oneri di conferimento a discarica"]
["C3. altro (descrivere dettagliatamente)"]